Cogmind - Beta 16.1 @@@ ROGUE MODE // 2026.03.03 @ 16:43:37 Player: H3-MLN Result: Destroyed by ZJ-IH8(R) with Subdweller Machine Gun Performance ------------- Evolutions (0) 0 Regions Visited (2) 400 Robots Destroyed (10) 50 Value Destroyed (333) 333 Prototype IDs (0) 0 Alien Tech Used (0) 0 Bonus (0) 0 TOTAL SCORE: 783 Bonus ------- None Cogmind --------- Core Integrity 0/250 Matter 11/300 Energy 198/200 System Corruption 0% Temperature Cool (0) Movement Treading (480) Ox4 Location -10/Subcaves Parts ------- > --- POWER (1) -------- Subdweller Power Source > --- PROPULSION (2) --- Light Treads Subdweller Monowheel > --- UTILITY (2) ------ Huge Storage Unit Subdweller Optics > --- WEAPON (2) ------- Subdweller Machine Gun Barrage Gun > --- INVENTORY (25) --- Ion Engine Makeshift Leg Compact Wheel Compact Wheel Subdweller Monowheel Subdweller Optics Subdweller Optics Small Laser Particle Cannon Particle Cannon Particle Cannon Particle Cannon Assault Rifle Autogun Autogun Autogun Autogun Subdweller Shrapnel Launcher Mining Laser Enhanced Flamer Makeshift Spear Peak State ------------ > --- POWER ------------ Subdweller Power Source > --- PROPULSION ------- Light Treads Subdweller Monowheel > --- UTILITY ---------- Huge Storage Unit Subdweller Optics > --- WEAPON ----------- Autogun Barrage Gun > --- INVENTORY -------- Ion Engine Makeshift Leg Compact Wheel Compact Wheel Subdweller Monowheel Subdweller Optics Subdweller Optics Small Laser Particle Cannon Particle Cannon Particle Cannon Particle Cannon Assault Rifle Autogun Autogun Autogun Subdweller Machine Gun Subdweller Shrapnel Launcher Mining Laser Enhanced Flamer Makeshift Spear [Rating: 17] Favorites ----------- Power Subdweller Power Source Engine Subdweller Power Source Propulsion Light Treads Treads Light Treads Wheel Subdweller Monowheel Utility Huge Storage Unit Device Subdweller Optics Storage Huge Storage Unit Weapon Barrage Gun Energy Gun Subdweller Laser Ballistic Gun Barrage Gun Launcher Subdweller Shrapnel Launcher Special Weapon Mining Laser Build | -11 -10 -10 ------- Run | Yrd Mat Sub Slots Evolved . | . . . Power . | . . . Propulsion . | . . . Utility . | . . . Weapon . | . . . Parts Attached 26 | 8 4 14 Power 2 | 1 . 1 Engine 2 | 1 . 1 Core . | . . . Reactor . | . . . Propulsion 6 | 3 . 3 Treads 2 | 1 . 1 Leg . | . . . Wheel 4 | 2 . 2 Hover . | . . . Flight . | . . . Utility 6 | 2 1 3 Device 4 | 1 . 3 Storage 2 | 1 1 . Processor . | . . . Hackware . | . . . Protection . | . . . Artifact . | . . . Weapon 12 | 2 3 7 Energy Gun 3 | 2 . 1 Energy Cannon . | . . . Ballistic Gun 7 | . 3 4 Ballistic Cannon . | . . . Launcher 1 | . . 1 Special Weapon 1 | . . 1 Impact Weapon . | . . . Slashing Weapon . | . . . Piercing Weapon . | . . . Special Melee Weapon . | . . . Unidentified Prototypes . | . . . Parts Lost 5 | . . 5 Power 1 | . . 1 Propulsion 1 | . . 1 Utility 1 | . . 1 Weapon 2 | . . 2 Highest Loss Streak 2 | . . 2 To Critical Strikes . | . . . Average Backups 17 | 2 10 18 Power . | . 1 1 Propulsion 3 | 1 2 3 Utility 1 | . . 1 Weapon 11 | . 7 12 Tool/Special . | . . . Unused Backups 10 | . . 10 Power 1 | . . 1 Propulsion 1 | . . 1 Utility . | . . . Weapon 8 | . . 8 Tool/Special . | . . . Average Slot Usage (%) 99 | . 100 99 Engine 13 | . 14 13 Treads 14 | . 14 14 Wheel 13 | . 14 13 Device 13 | . 14 13 Storage 14 | . 14 14 Energy Gun 2 | . 3 2 Ballistic Gun 24 | . 24 24 Peak Build Rating 17 | 9 12 17 Average Rating 14 | 5 11 15 On Entrance 6 | . 9 11 Avg Prop Armor Cover (%) 12 | 14 12 12 Naked Turns . | . . . Heaviest Build 98 | 12 90 98 Greatest Support 32 | 32 16 20 Greatest Overweight (x) 5 | . 5 5 Average Overweight (x) 3 | . 4 4 Largest Inventory Capacity 25 | 8 25 25 Average Capacity 24 | 7 22 25 Most Carried 21 | 5 12 21 Average Carried 17 | 2 10 18 Final Capacity 25 | 8 25 25 Final Carried 21 | 5 12 21 Class Distribution -------------------- 93% | Mutant 6% | Scavenger-Mutant Dominant Class ---------------- Mutant | -10/Materials Mutant | -10/Subcaves Resources | -11 -10 -10 ----------- Run | Yrd Mat Sub Matter Collected 636 | 280 . 356 Remotely . | . . . Salvage Created 358 | 122 . 236 Parts 17 | 3 . 14 Haulers Intercepted . | . . . Recyclers Shooed 1 | 1 . . Parts Field Recycled . | . . . Retrieved Matter . | . . . Parts Self-Destructed 3 | . . 3 Prevented . | . . . Parts Restored . | . . . Kills | -11 -10 -10 ------- Run | Yrd Mat Sub Combat Hostiles Destroyed 8 | . . 8 Guns 4 | . . 4 AOE 4 | . . 4 Classes Destroyed 3 | 2 . 1 Tunneler 1 | 1 . . Recycler 1 | 1 . . Subdweller 8 | . . 8 Best Kill Streak 4 | 2 . 4 Combat Bots Only 4 | . . 4 Max Kills in Single Turn 1 | 1 . 1 Gunslinging . | . . . Exploded 1 | . . 1 Melee . | . . . Uniques/NPCs Destroyed . | . . . Combat | -11 -10 -10 -------- Run | Yrd Mat Sub Hostile Shots Fired 50 | . . 50 Missed 13 | . . 13 Hits 37 | . . 37 Projectile 37 | . . 37 AOE 2 | . . 2 Critical Strikes 1 | . . 1 Damage Taken 914 | . . 914 Core 268 | . . 268 Absorbed by Shields . | . . . Core Remaining (%) 100 | 100 . . Volleys Fired 97 | 5 . 92 Largest 2 | 2 . 2 Hottest 100 | 90 . 100 Shots Fired 133 | 10 . 123 Gun 121 | 10 . 111 Cannon . | . . . Launcher 10 | . . 10 Special 2 | . . 2 Kinetic 92 | . . 92 Thermal 41 | 10 . 31 Explosive . | . . . Electromagnetic . | . . . Robot Hit Streak 19 | 8 . 19 Robot Miss Streak 2 | . . 2 Penetration Max . | . . . Secondary Targets . | . . . Shots Hit Robots 69 | 8 . 61 Core Hits 17 | 3 . 14 Critical Kills . | . . . Critical Parts Destroyed . | . . . Critical Strikes 2 | 1 . 1 Burn 1 | 1 . . Destroy 1 | . . 1 Melee Attacks . | . . . Impact . | . . . Slashing . | . . . Piercing . | . . . Sneak Attacks . | . . . Combat Hostiles . | . . . Follow-up Attacks . | . . . Damage Inflicted 1865 | 99 . 1766 Guns 1147 | 99 . 1048 Cannons . | . . . Explosions 718 | . . 718 Melee . | . . . Ramming . | . . . Kinetic 1444 | . . 1444 Thermal 421 | 99 . 322 Explosive . | . . . Electromagnetic . | . . . Impact . | . . . Slashing . | . . . Piercing . | . . . Highest Corruption . | . . . Average Corruption . | . . . Corruption Purged . | . . . Corruption Blocked . | . . . Overload Shots . | . . . Overflow Damage . | . . . Projectiles . | . . . Explosions . | . . . Melee . | . . . Knockbacks . | . . . Impact . | . . . Kinetic . | . . . Secondary . | . . . Self-Inflicted Damage 52 | . . 52 Shots 2 | . . 2 Rammed . | . . . Targets Rammed . | . . . Kicked . | . . . Crushed . | . . . Highest Temperature 90 | 90 . 6 Average Temperature 28 | 52 . 2 Received Heat Transfer 81 | . . 81 Siege Activations . | . . . Martial Activations . | . . . Shielding Activations . | . . . Robots Disrupted . | . . . Combat Hostiles . | . . . Robots Corrupted . | . . . Combat Hostiles . | . . . Parts Fried . | . . . Impact Corruptions . | . . . Robots Melted . | . . . Combat Hostiles . | . . . Parts Melted 1 | 1 . . Heat Transferred 709 | 334 . 375 Parts Sabotaged . | . . . Parts Stolen . | . . . Parts Stripped . | . . . Power Chain Reactions . | . . . Alert | -11 -10 -10 ------- Run | Yrd Mat Sub Maximum Alert Level . | . . . Low Security (%) 100 | 100 100 . Level 1 . | . . . Level 2 . | . . . Level 3 . | . . . Level 4 . | . . . Level 5 . | . . . High Security . | . . . Max Security . | . . . Peak Influence 10 | 10 6 . Initial . | . . . Average . | . . . Influence Increases 16 | 10 6 . Destroy 0b10 Robot/NC 10 | 10 . . Successful Hack 6 | . 6 . Influence Decreases 16 | 10 6 . Time Decay 16 | 10 6 . Squads Dispatched . | . . . Investigation . | . . . Extermination . | . . . Reinforcement . | . . . Assault . | . . . Garrison . | . . . Intercept . | . . . Searches Triggered . | . . . Construction Impeded . | . . . Haulers Reinforced . | . . . Active Scanning Responses . | . . . Cargo Convoy Interrupts . | . . . Stealth | -11 -10 -10 --------- Run | Yrd Mat Sub Distress Signals . | . . . Communications Jammed . | . . . Distress Signals . | . . . Times Spotted 11 | . . 11 Peak Tracking Total 2 | . . 2 Tactical Retreats . | . . . Traps | -11 -10 -10 ------- Run | Yrd Mat Sub Traps Triggered 1 | . . 1 Indirectly . | . . . Trap Hack Attempts . | . . . Triggered . | . . . Disarmed . | . . . Reprogrammed . | . . . Reused . | . . . Traps Extracted . | . . . Installed . | . . . Triggered . | . . . Machines | -11 -10 -10 ---------- Run | Yrd Mat Sub Machines Disabled . | . . . Max in Single Turn . | . . . Machines Repaired . | . . . Machines Dismantled . | . . . Machines Sabotaged . | . . . Overloaded Fab Kills . | . . . Hacking | -11 -10 -10 --------- Run | Yrd Mat Sub Machines Accessed 2 | . 2 . Terminals 2 | . 2 . Fabricators . | . . . Repair Stations . | . . . Recycling Units . | . . . Scanalyzers . | . . . Garrison Access . | . . . Total Hacks 4 | . 4 . Successful 1 | . 1 . Failed 3 | . 3 . Catastrophic . | . . . Database Lockouts . | . . . Manual 4 | . 4 . Terminals 4 | . 4 . Fabricators . | . . . Repair Stations . | . . . Recycling Units . | . . . Scanalyzers . | . . . Garrison Access . | . . . Terminal Hacks 1 | . 1 . Robot Analysis 1 | . 1 . Fabricator Hacks . | . . . Repair Station Hacks . | . . . Recycling Unit Hacks . | . . . Scanalyzer . | . . . Garrison Access Hacks . | . . . Unauthorized Hacks . | . . . Terminals . | . . . Fabricators . | . . . Repair Stations . | . . . Recycling Units . | . . . Scanalyzers . | . . . Garrison Access . | . . . Data Cores Recovered . | . . . Used . | . . . Hacking Detections 2 | . 2 . Full Trace Events . | . . . Feedback Events . | . . . Feedback Blocked . | . . . Robot Schematics Acquired . | . . . Robots Built . | . . . Authchips . | . . . Time . | . . . Total Robot Build Rating . | . . . Part Schematics Acquired . | . . . Parts Built . | . . . Authchips . | . . . Time . | . . . Total Part Build Rating . | . . . Part Studies Acquired . | . . . Parts Repaired . | . . . Time . | . . . Parts Recycled . | . . . Recycled Matter . | . . . Retrieved Matter . | . . . Retrieved Components . | . . . Parts Scanalyzed . | . . . Part Schematics Acquired . | . . . Parts Damaged . | . . . Bothacking | -11 -10 -10 ------------ Run | Yrd Mat Sub Used RIF Installer . | . . . Robots Hacked . | . . . Non-combat . | . . . Combat . | . . . Robot Hacks Applied . | . . . Relay Couplers Released . | . . . Fabnet Peak Effective % . | . . . Robots Rewired . | . . . Allies Hacked . | . . . Hacks Repelled . | . . . Allies | -11 -10 -10 -------- Run | Yrd Mat Sub Total Allies . | . . . Largest Group . | . . . Highest-Rated Group . | . . . Highest-Rated Ally . | . . . Total Orders . | . . . Ally Attacks . | . . . Total Damage . | . . . Kills . | . . . Allies Corrupted . | . . . Allies Melted . | . . . Intel | -11 -10 -10 ------- Run | Yrd Mat Sub Active Infowar (turns) 1427 | 14 160 1253 Optics 1040 | . . 1040 Terrain 387 | 14 160 213 Robot Analysis Total 1 | . 1 . Derelict Logs Recovered 1 | . . 1 Drone Launches . | . . . Drone Recoveries . | . . . Exploration | -11 -10 -10 ------------- Run | Yrd Mat Sub Turns Passed 2247 | 97 160 1990 Spaces Moved 999 | 67 91 841 Core 2 | 2 . . Treads . | . . . Legs . | . . . Wheels 997 | 65 91 841 Hover . | . . . Flight . | . . . Fastest Speed 50 | 50 100 150 Average Speed 152 | 98 160 156 Slowest Speed 175 | 100 175 175 Overloaded Moves . | . . . Propulsion Burnouts . | . . . Robots Hopped . | . . . Potential Cave-ins . | . . . Cave-ins Triggered . | . . . Exploration Rate (%) 25 | 4 13 58 Regions Visited 2 Branch Regions 1 Pre-discovered Areas 1 | . . 1 Known Exits Taken . | . . . Unknown Exits Taken 2 | 1 1 . Scrap Searched . | . . . Spaces Dug 16 | . . 16 Terrain Destroyed 97 | . . 97 Melee . | . . . Projectile 6 | . . 6 AOE 91 | . . 91 Terrain Rammed . | . . . Walls Destroyed . | . . . Machines Disabled . | . . . Actions | -11 -10 -10 --------- Run | Yrd Mat Sub Total 1580 | 84 106 1390 Wait 431 | . . 431 Move 997 | 66 90 841 Hop . | . . . Pick Up 22 | 5 8 9 Fast Attach 11 | 7 2 2 Attach 3 | . . 3 Detach . | . . . Swap 15 | 1 2 12 Drop 4 | . 4 . Fire 97 | 5 . 92 Melee . | . . . Ram . | . . . Kick . | . . . Crush . | . . . Escape Stasis . | . . . Rewire . | . . . Trap . | . . . Miscellaneous . | . . . Route ------- -11/Scrapyard -10/Materials -10/Subcaves (discovered 1 exit: [*Mat]) History --------- Turn | Location | Event 32 | -11/Scrapyard | Discovered new exit (range 14) 98 | -11/Scrapyard | Entered Materials 241 | -10/Materials | Discovered new exit (range 11) 258 | -10/Materials | Entered Subcaves 315 | -10/Subcaves | Build established: Mutant 371 | -10/Subcaves | A swath of the cavern ceiling suddenly collapsed 652 | -10/Subcaves | Shifting Twisted Machinery released Enh. Flamer 683 | -10/Subcaves | Shifting Twisted Machinery released Barrage Gun 684 | -10/Subcaves | Learned location of Zion (-7) 684 | -10/Subcaves | Met a Zionite searching for "candidates" 891 | -10/Subcaves | Core integrity fell below 50% 1188 | -10/Subcaves | Shifting Twisted Machinery released Sub. Optics 1189 | -10/Subcaves | Shifting Twisted Machinery released Sub. Machine Gun 1316 | -10/Subcaves | Learned 8 Materials zone layouts 1860 | -10/Subcaves | A swath of the cavern ceiling suddenly collapsed 1875 | -10/Subcaves | Discovered new exit (range 12) 2212 | -10/Subcaves | Core integrity fell below 20% 2219 | -10/Subcaves | Ambushed by Subdweller buried in earth 2223 | -10/Subcaves | Ambushed by Subdweller buried in earth 2248 | -10/Subcaves | Destroyed by ZJ-IH8(R) with Subdweller Machine Gun Last Messages --------------- 01655_ Sub. Optics shoots sparks and powers down. A swath of the cavern ceiling suddenly collapses. 01875_ EXIT=FOUND 01892_ Acquired 47 matter. 01995_ SP-TXM(u) builds Twisted Machinery. 02093_ Acquired 26 matter. 02123_ Acquired 8 matter. 02211_ IX-ABJ(R) destroyed. 02219_ NF-AM7(R) destroyed. 02220_ TN-6X7(R): "SLEEPOVER!" 02220_ ZV-YBV(R): "THANKSYOU!" 02223_ TN-6X7(R) destroyed. 02224_ ZJ-IH8(R): "GOODGOOD!" 02224_ Subatomizers dissect the Sub. Power Source. 02229_ ZV-YBV(R) destroyed. 02237_ Subatomizers dissect the Sub. Power Source. 02237_ ZJ-IH8(R) affixes Scrap Shield Fragment to Scrap Shield. 02239_ ZJ-IH8(R) suffers critical hit (Destroy). 02243_ The unstable cave ceiling collapses. 02245_ Destroyed Scrap Shield. Map ----- +----------------------------------------------------+ | ?????????????????????????????????????????????????? | | ?????????????????????????????????????????????????? | | ?????????????????????????????????????????????????? | | ?????????????????????????????????????????????????? | | ???????????????????????????????????????###???????? | | ???????????????????? ## #"????????????## #???????? | | ?????????????????# " ########## ##??????? | | ????????????????# # ####???? | | ??????????????????????# ## #???? | | ??????????????????????#### ## ## ##??? | | ???????????????????????#?# ??# ### ##?? | | ?????????????????????# ## #???## ### ##? | | ??????????????????# # #### ##?## ##?# #? | | ???????????????? # ;; ;;### ### ## | | ????????????????? " ; "## # | | ????????????????##; ; ##### # | | ????????????????# # ##?# | | ????????????????# ### #?## | | ???????????????## * # ##??## | | ???????????????# =% ; ####????# | | ???????????????## R ; # ########## | | ???????????????# # ### ## | | ????????????????# & ;# | | ????????????????# & ## | | ????????????????#; * ##### | | ???????????? " ; @ #??# " | | ?????????????????### ;; " # # "" #?## " | | ???????????????? """ #### " ####"" ###### | | ??????????????? #####???## ###"""##### | | ???????????????????# #????## " "### ## ### | | ???????????????##### ?????# "####?## ##?# | | ???????????????? ????## ""#?????### #??? | | ?????????????#??? ????# ""#???###### #??? | | ?????#???????# ??? ????## "###### #### #??? | | ?????#" ????# ??? ????#"" ### " #?## #??? | | ?????#" ## ### ????#""" # " ##??#####??? | | ????????? ######" ##""" ##??????????? | | ????????????? "#?#" ## ###???????????? | | ????????????????? #??#" "# #?????????????? | | ????????????????????# #### ""# ""#?????????????? | | ????????????????????## ## ## ""#?????????????? | | ?????????????????????## """#?????????????? | | ??????????????????????# """ "##?????????????? | | ?????????????????????## ##??????????????? | | ?????????????????????# ####???????????????? | | ?????????????????????# ## ##??????????????????? | | ?????????????????????# ## ##??????????????????? | | ?????????????????????# ### ##?????????????????? | | ?????????????????????# #?# #?????????????????? | | ????????????????????## ### #?????????????????? | +----------------------------------------------------+ Best States ------------- Heat Dissipation 25 Energy Generation 15 Energy Capacity 200 Matter Stores 300 Matter Capacity 300 Sight Range 21 Terrain Scan Range 16 Terrain Scan Density 10 Evasion (%) 40 Recoil Reduction 2 Item Schematics ----------------- None Robot Schematics ------------------ None Fabricated ------------ Nothing Repaired ---------- Nothing Studied --------- None Alien Tech Used ----------------- None Achievements -------------- None Challenges ------------ None Game ------ Seed HoverEncryptedShifter Manual? 0 Play Time 00:21:08 Cumulative 1388.4 hours Start 2026.03.03 @ 16:31:15 End 2026.03.03 @ 16:43:37 Sessions 1 Manual Loads 0 Difficulty Rogue Special Mode None Game No. 460 Rogue 453 Adventurer 4 Explorer 3 Win Type - Total 39 Types 18/5/2/2/1/2/4/1/2/2 Lore% 97 Gallery% 94 Achievement% 87 Wizard Run 0 Options --------- Layout 0 ASCII 0 Keyboard 0 Movement Numpad Keybinds 0 Fullscreen 2 Font 18/SmallcapsGlow Map View 76x50 Zoom Use 0% Tactical HUD 1 Map Filters NONE Filters NONE Steam 1 RUN: c452a394-7945-4400-b372-75eb64aaee7f